fUSD/lending_fUSD_20260217
["ID","MTS","AMOUNT","RATE_DAILY","PERIOD"]
[405809140,1771330259508,-163.73854722,0.000356,120]
[405809141,1771330259518,-363.31023777,0.000356,120]
[405809142,1771330259527,-182.77253773,0.000356,120]
[405809143,1771330259537,-79636.06246017,0.0003561,2]
[405809144,1771330259546,-4444.77803372,0.0003561,2]
[405809145,1771330259556,-5000.0,0.0003561,2]
[405809146,1771330259566,-500.0,0.00035616,120]
[405809147,1771330259576,-502.0,0.00035616,30]
[405809148,1771330259586,-896.23,0.00035616,2]
[405809149,1771330259595,-212.57143527,0.00035653,7]
[405809150,1771330259604,-150.0,0.00035665,7]
[405809151,1771330259614,-150.0,0.00035674,7]
[405809152,1771330259623,-500.0,0.0003569,120]
[405809153,1771330259633,-150.0,0.00035708,7]
[405809154,1771330259643,-150.0,0.00035729,7]
[405809155,1771330259652,-150.0,0.00035729,7]
[405809156,1771330259661,-150.0,0.00035742,7]
[405809157,1771330259671,-150.0,0.00035777,7]
[405809158,1771330259680,-212.57143527,0.00035801,7]
[405809159,1771330259690,-236.34611047,0.0003581,14]
[405809160,1771330259699,-501.0,0.00035835,19]
[405809161,1771330259708,-150.0,0.00035843,7]
[405809162,1771330259718,-150.0,0.0003585,7]
[405809163,1771330259727,-150.0,0.00035857,7]
[405809164,1771330259737,-150.0,0.00035861,7]
[405809165,1771330259747,-150.0,0.00035874,7]
[405809166,1771330259756,-236.994,0.00035888,30]
[405809167,1771330259766,-150.0,0.00035891,7]
[405809168,1771330259775,-1000.0,0.000359,2]
[405809169,1771330259948,-150.0,0.00035939,7]
[405809170,1771330259988,-212.57143527,0.00035948,7]
[405809171,1771330259998,-150.0,0.00035955,7]
[405809172,1771330260008,-151.0,0.00035997,14]
[405809173,1771330260017,-561.04,0.00036,30]
[405809174,1771330260026,-172368.59781552,0.00036,2]
[405809175,1771330260035,-500.0,0.00036,120]
[405809176,1771330260044,-1000.0,0.00036,120]
[405809177,1771330260054,-1000.0,0.00036,120]
[405809178,1771330260064,-282.61,0.00036,120]
[405809179,1771330260074,-1071.0,0.00036,15]
[405809180,1771330260084,-500.0,0.00036,3]
[405809181,1771330260095,-2275.94285182,0.00036,2]
[405809182,1771330260104,-1000.0,0.00036,120]
[405809183,1771330260114,-1000.0,0.00036,120]
[405809184,1771330260125,-160.0,0.00036,2]
[405809185,1771330260136,-62993.9007939,0.00036,2]
[405809186,1771330260147,-151.0,0.00036,31]
[405809187,1771330260156,-151.0,0.00036,31]
[405809188,1771330260167,-151.0,0.00036,31]
[405809189,1771330260177,-282.320143,0.00036,31]
[405809190,1771330260187,-282.320143,0.00036,31]
[405809191,1771330260198,-282.320143,0.00036,31]
[405809192,1771330260208,-282.320143,0.00036,31]
[405809193,1771330260218,-1077.202168,0.00036,31]
[405809194,1771330260229,-1077.202168,0.00036,31]
[405809195,1771330260239,-492.668276,0.00036,28]
[405809196,1771330260248,-1077.202168,0.00036,31]
[405809197,1771330260258,-492.668276,0.00036,28]
[405809198,1771330260268,-1077.202168,0.00036,31]
[405809199,1771330260278,-492.668276,0.00036,28]
[405809200,1771330260288,-492.668276,0.00036,28]
[405809201,1771330260298,-1783.60803,0.00036,31]
[405809202,1771330260308,-1783.60803,0.00036,31]
[405809203,1771330260317,-1783.60803,0.00036,31]
[405809204,1771330260327,-1783.60803,0.00036,31]
[405809205,1771330260336,-167.064397,0.00036,7]
[405809206,1771330260346,-167.064397,0.00036,7]
[405809207,1771330260356,-167.064397,0.00036,7]
[405809208,1771330260367,-167.064397,0.00036,7]
[405809209,1771330260377,-457.741827,0.00036,31]
[405809210,1771330260388,-457.741827,0.00036,31]
[405809211,1771330260398,-457.741827,0.00036,31]
[405809212,1771330260408,-457.741827,0.00036,31]
[405809213,1771330260418,-416526.77,0.00036,14]
[405809214,1771330260428,-150.0,0.00036013,7]
[405809215,1771330260439,-150.0,0.0003604,7]
[405809216,1771330260451,-150.0,0.00036049,7]
[405809217,1771330260461,-150.0,0.00036079,7]
[405809218,1771330260470,-236.994,0.00036088,30]
[405809219,1771330260480,-212.57143527,0.00036096,7]
[405809220,1771330260490,-150.0,0.00036133,7]
[405809221,1771330260500,-150.0,0.00036149,7]
[405809222,1771330260508,-150.0,0.00036149,7]
[405809223,1771330260520,-150.0,0.00036159,7]
[405809224,1771330260529,-150.0,0.00036183,7]
[405809225,1771330260538,-150.0,0.00036206,7]
[405809226,1771330260548,-152.0,0.00036226,10]
[405809227,1771330260559,-150.0,0.00036241,7]
[405809228,1771330260569,-212.57143527,0.00036243,7]
[405809229,1771330260579,-150.0,0.00036266,7]
[405809230,1771330260588,-236.994,0.00036288,30]
[405809231,1771330260598,-156.5,0.000363,14]
[405809232,1771330260608,-150.0,0.00036312,7]
[405809233,1771330260618,-1530.93,0.00036317,7]
[405809234,1771330260628,-215864.23524444,0.00036321,7]
[405809235,1771330260638,-150.0,0.00036353,7]
[405809236,1771330260647,-150.0,0.00036359,7]
[405809237,1771330260657,-150.0,0.00036359,7]
[405809238,1771330260667,-150.0,0.00036372,7]
[405809239,1771330260676,-150.0,0.00036391,7]
[405809240,1771330260686,-212.57143527,0.00036391,7]
[405809241,1771330260697,-1275.0,0.00036395,2]
[405809242,1771330260707,-1209.0,0.000364,2]
[405809243,1771330260717,-2452.0,0.000364,2]
[405809244,1771330260726,-5973.0,0.000364,2]
[405809245,1771330260736,-150.0,0.0003643,2]
[405809246,1771330260746,-150.0,0.00036433,7]
[405809247,1771330260756,-150.0,0.00036457,7]
[405809248,1771330260766,-10000.0,0.00036463,7]
[405809249,1771330260775,-501.0,0.00036485,19]
[405809250,1771330260785,-236.994,0.00036488,30]
[405809251,1771330260795,-150.0,0.0003649,7]
[405809252,1771330260805,-150.0,0.00036523,7]
[405809253,1771330260814,-4331.07,0.0003653,30]
[405809254,1771330260824,-212.57143527,0.00036538,7]
[405809255,1771330260834,-150.0,0.00036538,7]
[405809256,1771330260843,-44462.0,0.0003654,20]
[405809257,1771330260853,-150.0,0.00036568,7]
[405809258,1771330260863,-150.0,0.00036626,7]
[405809259,1771330260872,-1028.10550638,0.00036632,14]
[405809260,1771330260882,-150.0,0.0003664,7]
[405809261,1771330260893,-150.0,0.0003664,7]
[405809262,1771330260903,-150.0,0.00036668,7]
[405809263,1771330260912,-212.57143527,0.00036686,7]
[405809264,1771330260922,-236.994,0.00036688,30]
[405809265,1771330260932,-150.0,0.00036693,7]
[405809266,1771330260942,-173.31779172,0.000367,120]
[405809267,1771330260951,-186.15037356,0.000367,120]
[405809268,1771330260960,-192.33033476,0.000367,120]
[405809269,1771330260969,-173.31620803,0.000367,120]
[405809270,1771330260979,-161.06307726,0.000367,120]
[405809271,1771330260989,-163.73854722,0.000367,120]
[405809272,1771330260998,-363.31023777,0.000367,120]
[405809273,1771330261008,-182.77253773,0.000367,120]
[405809274,1771330261018,-150.0,0.00036704,7]
[405809275,1771330261027,-561.04,0.0003672,30]
[405809276,1771330261037,-31305.59,0.00036731,2]
[405809277,1771330261047,-150.0,0.00036755,7]
[405809278,1771330261057,-150.0,0.00036778,7]
[405809279,1771330261067,-1615.64472527,0.000368,2]
[405809280,1771330261076,-1961.31429873,0.000368,2]
[405809281,1771330261086,-150.0,0.00036818,7]
[405809282,1771330261095,-212.57143527,0.00036833,7]
[405809283,1771330261105,-150.0,0.00036846,7]
[405809284,1771330261115,-500.0,0.00036853,120]
[405809285,1771330261128,-150.0,0.00036862,7]
[405809286,1771330261139,-150.0,0.0003687,7]
[405809287,1771330261151,-236.994,0.00036888,30]
[405809288,1771330261160,-789.98,0.00036888,7]
[405809289,1771330261171,-231.0,0.0003689,30]
[405809290,1771330261180,-207.0,0.0003689,30]
[405809291,1771330261190,-10000.0,0.000369,120]
[405809292,1771330261201,-14173.32645302,0.0003691,2]
[405809293,1771330261211,-150.0,0.00036932,7]
[405809294,1771330261221,-212.57143527,0.00036981,7]
[405809295,1771330261231,-150.0,0.00036988,7]
[405809296,1771330261240,-150.0,0.00036988,7]
[405809297,1771330261250,-3000.0,0.00037,30]
[405809298,1771330261260,-1006.0,0.00037,30]
[405809299,1771330261270,-2133.83,0.00037,2]
[405809300,1771330261280,-461.69,0.00037,14]
[405809301,1771330261290,-363.22297358,0.00037,3]
[405809302,1771330261300,-166.20792768,0.00037,2]
[405809303,1771330261309,-485.621831,0.00037,31]
[405809304,1771330261319,-485.621831,0.00037,31]
[405809305,1771330261328,-485.621831,0.00037,31]
[405809306,1771330261337,-485.621831,0.00037,31]
[405809307,1771330261346,-416526.77,0.00037,14]
[405809308,1771330261355,-150.0,0.0003701,7]
[405809309,1771330261364,-150.0,0.00037015,7]
[405809310,1771330261374,-150.0,0.00037024,7]
[405809311,1771330261383,-150.0,0.00037032,7]
[405809312,1771330261393,-150.0,0.00037036,7]
[405809313,1771330261402,-150.0,0.00037053,7]
[405809314,1771330261411,-236.994,0.00037088,30]
[405809315,1771330261420,-212.57143527,0.00037128,7]
[405809316,1771330261430,-501.0,0.00037134,20]
[405809317,1771330261439,-435.55,0.00037144,60]
[405809318,1771330261452,-150.0,0.00037198,7]
[405809319,1771330261462,-150.0,0.00037198,7]
[405809320,1771330261471,-156.5,0.000372,14]
[405809321,1771330261481,-185.21401272,0.000372,120]
[405809322,1771330261491,-185.2140127,0.000372,120]
[405809323,1771330261502,-185.2140127,0.000372,120]
[405809324,1771330261512,-150.0,0.00037202,7]
[405809325,1771330261522,-150.0,0.00037202,7]
[405809326,1771330261532,-150.0,0.00037202,7]
[405809327,1771330261543,-150.0,0.00037202,7]
[405809328,1771330261553,-150.0,0.00037202,7]
[405809329,1771330261562,-150.0,0.00037202,7]
[405809330,1771330261571,-150.0,0.00037202,7]
[405809331,1771330261580,-212.57143527,0.00037276,7]
[405809332,1771330261590,-236.994,0.00037288,30]
[405809333,1771330261599,-152.0,0.00037329,11]
[405809334,1771330261609,-150.0,0.00037351,7]
[405809335,1771330261618,-150.0,0.00037368,7]
[405809336,1771330261628,-150.0,0.00037372,7]
[405809337,1771330261637,-150.0,0.0003738,7]
[405809338,1771330261646,-2231.7,0.00037389,7]
[405809339,1771330261656,-150.0,0.00037389,7]
[405809340,1771330261666,-150.0,0.00037394,7]
[405809341,1771330261675,-150.0,0.00037408,7]
[405809342,1771330261684,-212.57143527,0.00037423,7]
[405809343,1771330261695,-561.04,0.0003744,30]
[405809344,1771330261705,-150.0,0.00037472,7]
[405809345,1771330261715,-236.994,0.00037488,30]
[405809346,1771330261724,-8149.0,0.000375,120]
[405809347,1771330261734,-150.0,0.00037534,7]
[405809348,1771330261744,-150.0,0.00037542,7]
[405809349,1771330261754,-150.0,0.00037558,7]
[405809350,1771330261764,-212.57143527,0.00037571,7]
[405809351,1771330261773,-150.0,0.00037586,7]
[405809352,1771330261783,-4346.89590244,0.0003759,2]
[405809353,1771330261792,-1544.53,0.000376,30]
[405809354,1771330261802,-44462.0,0.00037605,20]
[405809355,1771330261811,-150.0,0.00037617,7]
[405809356,1771330261820,-150.0,0.00037617,7]
[405809357,1771330261830,-150.0,0.00037649,7]
[405809358,1771330261840,-236.994,0.00037688,30]
[405809359,1771330261850,-150.0,0.000377,7]
[405809360,1771330261859,-150.0,0.00037711,7]
[405809361,1771330261869,-212.57143527,0.00037718,7]
[405809362,1771330261878,-150.0,0.00037736,7]
[405809363,1771330261888,-150.0,0.00037764,7]
[405809364,1771330261898,-150.0,0.00037764,7]
[405809365,1771330261907,-150.0,0.00037778,7]
[405809366,1771330261917,-501.0,0.00037784,21]
[405809367,1771330261926,-173.31779172,0.000378,120]
[405809368,1771330261935,-186.15037356,0.000378,120]
[405809369,1771330261944,-192.33033476,0.000378,120]
[405809370,1771330261954,-173.31620803,0.000378,120]
[405809371,1771330261963,-163.73854722,0.000378,120]
[405809372,1771330261973,-363.31023777,0.000378,120]
[405809373,1771330261982,-182.77253773,0.000378,120]
[405809374,1771330261991,-150.0,0.00037827,7]
[405809375,1771330262001,-212.57143527,0.00037866,7]
[405809376,1771330262011,-150.0,0.00037866,7]
[405809377,1771330262021,-202.79238734,0.0003788,2]
[405809378,1771330262031,-150.0,0.00037881,7]
[405809379,1771330262039,-236.994,0.00037888,30]
[405809380,1771330262049,-150.0,0.00037914,7]
[405809381,1771330262058,-150.0,0.00037947,7]
[405809382,1771330262067,-150.0,0.00037971,7]
[405809383,1771330262076,-1003.85,0.00038,120]
[405809384,1771330262086,-500.0,0.00038,120]
[405809385,1771330262095,-2174.64,0.00038,2]
[405809386,1771330262104,-3510.0,0.00038,30]
[405809387,1771330262114,-500.0,0.00038,2]
[405809388,1771330262126,-1139.4452413,0.00038,30]
[405809389,1771330262138,-416526.77,0.00038,14]
[405809390,1771330262148,-150.0,0.00038013,7]
[405809391,1771330262157,-212.57143527,0.00038013,7]
[405809392,1771330262166,-150.0,0.00038032,7]
[405809393,1771330262177,-1391.0,0.00038032,11]
[405809394,1771330262186,-150.0,0.00038037,7]
[405809395,1771330262198,-150.0,0.00038051,7]
[405809396,1771330262208,-236.994,0.00038088,30]
[405809397,1771330262217,-150.0,0.00038092,7]
[405809398,1771330262227,-500.0,0.00038118,120]
[405809399,1771330262237,-150.0,0.00038138,7]
[405809400,1771330262248,-561.04,0.0003816,30]
[405809401,1771330262258,-212.57143527,0.00038161,7]
[405809402,1771330262268,-150.0,0.00038163,7]
[405809403,1771330262279,-200.0,0.00038195,2]
[405809404,1771330262288,-200.0,0.00038195,2]
[405809405,1771330262297,-200.0,0.00038195,2]
[405809406,1771330262307,-200.0,0.00038195,2]
[405809407,1771330262316,-200.0,0.00038195,2]
[405809408,1771330262326,-200.0,0.00038195,2]
[405809409,1771330262335,-200.0,0.00038195,2]
[405809410,1771330262345,-200.0,0.00038195,2]
[405809411,1771330262355,-200.0,0.00038195,2]
[405809412,1771330262365,-200.0,0.00038195,2]
[405809413,1771330262375,-200.0,0.00038195,2]
[405809414,1771330262384,-200.0,0.00038195,2]
[405809415,1771330262394,-200.0,0.00038195,2]
[405809416,1771330262403,-200.0,0.00038195,2]
[405809417,1771330262480,-200.0,0.00038195,2]
[405809418,1771330262490,-200.0,0.00038195,2]
[405809419,1771330262500,-200.0,0.00038195,2]
[405809420,1771330262509,-200.0,0.00038195,2]
[405809421,1771330262519,-200.0,0.00038195,2]
[405809422,1771330262528,-200.0,0.00038195,2]
[405809423,1771330262537,-200.0,0.00038195,2]
[405809424,1771330262546,-200.0,0.00038195,2]
[405809425,1771330262555,-200.0,0.00038195,2]
[405809426,1771330262565,-200.0,0.00038195,2]
[405809427,1771330262574,-200.0,0.00038195,2]
[405809428,1771330262583,-200.0,0.00038195,2]
[405809429,1771330262592,-200.0,0.00038195,2]
[405809430,1771330262602,-200.0,0.00038195,2]
[405809431,1771330262611,-200.0,0.00038195,2]
[405809432,1771330262620,-200.0,0.00038195,2]
[405809433,1771330262629,-200.0,0.00038195,2]
[405809434,1771330262638,-200.0,0.00038195,2]
[405809435,1771330262648,-200.0,0.00038195,2]
[405809436,1771330262657,-200.0,0.00038195,2]
[405809437,1771330262667,-200.0,0.00038195,2]
[405809438,1771330262676,-200.0,0.00038195,2]
[405809439,1771330262685,-200.0,0.00038195,2]
[405809440,1771330262695,-200.0,0.00038195,2]
[405809441,1771330262704,-200.0,0.00038195,2]
[405809442,1771330262713,-211.0,0.00038195,2]
[405809443,1771330262723,-150.0,0.00038198,7]
[405809444,1771330262733,-156.5,0.000382,14]
[405809445,1771330262742,-150.0,0.00038221,7]
[405809446,1771330262752,-150.0,0.00038245,7]
[405809447,1771330262761,-150.0,0.00038247,7]
[405809448,1771330262771,-150.0,0.00038247,7]
[405809449,1771330262780,-150.0,0.00038247,7]
[405809450,1771330262790,-150.0,0.00038252,2]
[405809451,1771330262800,-150.0,0.00038271,7]
[405809452,1771330262809,-236.994,0.00038288,30]
[405809453,1771330262818,-212.57143527,0.00038308,7]
[405809454,1771330262828,-150.0,0.00038325,7]
[405809455,1771330262838,-150.0,0.00038355,7]
[405809456,1771330262848,-10000.0,0.00038356,120]
[405809457,1771330262858,-6267.7,0.00038356,120]
[405809458,1771330262867,-2313.83,0.00038356,120]
[405809459,1771330262876,-1596.0,0.00038356,60]
[405809460,1771330262886,-500.0,0.00038356,120]
[405809461,1771330262896,-205.8,0.00038356,120]
[405809462,1771330262905,-151.0,0.00038356,120]
[405809463,1771330262915,-219.357885,0.00038356,120]
[405809464,1771330262924,-604.89485071,0.00038356,2]
[405809465,1771330262934,-150.0,0.00038364,7]
[405809466,1771330262945,-150.0,0.00038391,7]
[405809467,1771330262956,-1596.0,0.00038411,60]
[405809468,1771330262966,-501.0,0.00038433,21]
[405809469,1771330262975,-152.0,0.00038433,12]
[405809470,1771330262985,-150.0,0.00038449,7]
[405809471,1771330262994,-212.57143527,0.00038456,7]
[405809472,1771330263004,-150.0,0.00038456,7]
[405809473,1771330263014,-1596.0,0.00038466,60]
[405809474,1771330263024,-236.994,0.00038488,30]
[405809475,1771330263034,-3000.0,0.000385,50]
[405809476,1771330263043,-516.41,0.00038501,90]
[405809477,1771330263053,-1000.0,0.00038502,60]
[405809478,1771330263063,-1000.0,0.00038503,90]
[405809479,1771330263074,-1000.0,0.00038504,90]
[405809480,1771330263083,-1000.0,0.00038505,90]
[405809481,1771330263092,-1000.0,0.00038507,90]
[405809482,1771330263101,-1000.0,0.00038508,90]
[405809483,1771330263111,-500.0,0.00038508,90]
[405809484,1771330263121,-570.06,0.00038509,90]
[405809485,1771330263137,-150.0,0.00038513,7]
[405809486,1771330263146,-1596.0,0.0003852,60]
[405809487,1771330263157,-150.0,0.0003853,7]
[405809488,1771330263168,-150.0,0.00038543,7]
[405809489,1771330263178,-150.0,0.00038547,7]
[405809490,1771330263188,-150.0,0.00038554,7]
[405809491,1771330263200,-3755.07779246,0.00038557,120]
[405809492,1771330263210,-150.0,0.00038561,7]
[405809493,1771330263220,-1596.0,0.00038575,60]
[405809494,1771330263229,-212.57143527,0.00038603,7]
[405809495,1771330263239,-150.0,0.00038627,7]
[405809496,1771330263249,-1596.0,0.0003863,60]
[405809497,1771330263258,-151.0,0.0003863,120]
[405809498,1771330263268,-157.404271,0.0003863,120]
[405809499,1771330263279,-157.404271,0.0003863,120]
[405809500,1771330263289,-157.404271,0.0003863,120]
[405809501,1771330263299,-157.404271,0.0003863,120]
[405809502,1771330263309,-156.144977,0.0003863,120]
[405809503,1771330263318,-151.0,0.0003863,120]
[405809504,1771330263328,-151.0,0.0003863,120]
[405809505,1771330263338,-151.0,0.0003863,120]
[405809506,1771330263347,-154.469161,0.0003863,120]
[405809507,1771330263356,-156.942414,0.0003863,120]
[405809508,1771330263366,-500.0,0.0003863,120]
[405809509,1771330263375,-500.0,0.0003863,120]
[405809510,1771330263385,-500.0,0.0003863,120]
[405809511,1771330263395,-500.0,0.0003863,120]
[405809512,1771330263404,-500.0,0.0003863,120]
[405809513,1771330263414,-500.0,0.0003863,120]
[405809514,1771330263423,-500.0,0.0003863,120]
[405809515,1771330263432,-500.0,0.0003863,120]
[405809516,1771330263442,-500.0,0.0003863,120]
[405809517,1771330263453,-500.0,0.0003863,120]
[405809518,1771330263462,-500.0,0.0003863,120]
[405809519,1771330263473,-500.0,0.0003863,120]
[405809520,1771330263482,-500.0,0.0003863,120]
[405809521,1771330263491,-500.0,0.0003863,120]
[405809522,1771330263500,-500.0,0.0003863,120]
[405809523,1771330263510,-500.0,0.0003863,120]
[405809524,1771330263521,-151.000011,0.0003863,120]
[405809525,1771330263531,-152.393392,0.0003863,120]
[405809526,1771330263541,-151.0,0.0003863,120]
[405809527,1771330263551,-151.0,0.0003863,120]
[405809528,1771330263561,-151.0,0.0003863,120]
[405809529,1771330263571,-151.0,0.0003863,120]
[405809530,1771330263581,-151.0,0.0003863,120]
[405809531,1771330263591,-151.0,0.0003863,120]
[405809532,1771330263601,-151.0,0.0003863,120]
[405809533,1771330263611,-151.0,0.0003863,120]
[405809534,1771330263621,-151.0,0.0003863,120]
[405809535,1771330263631,-152.007722,0.0003863,120]
[405809536,1771330263642,-151.0,0.0003863,120]
[405809537,1771330263653,-151.0,0.0003863,120]
[405809538,1771330263663,-151.0,0.0003863,120]
[405809539,1771330263673,-153.522156,0.0003863,120]
[405809540,1771330263683,-151.0,0.0003863,120]
[405809541,1771330263693,-151.0,0.0003863,120]
[405809542,1771330263704,-151.0,0.0003863,120]
[405809543,1771330263714,-151.0,0.0003863,120]
[405809544,1771330263723,-165.457111,0.0003863,120]
[405809545,1771330263733,-201.49,0.0003863,120]
[405809546,1771330263743,-151.0,0.0003863,120]
[405809547,1771330263753,-151.0,0.0003863,120]
[405809548,1771330263763,-151.0,0.0003863,120]
[405809549,1771330263773,-151.0,0.0003863,120]
[405809550,1771330263783,-151.0,0.0003863,120]
[405809551,1771330263794,-238.149701,0.0003863,120]
[405809552,1771330263805,-151.0,0.0003863,120]
[405809553,1771330263814,-151.0,0.0003863,120]
[405809554,1771330263824,-151.0,0.0003863,120]
[405809555,1771330263834,-152.186229,0.0003863,120]
[405809556,1771330263844,-151.0,0.0003863,120]
[405809557,1771330263853,-151.0,0.0003863,120]
[405809558,1771330263864,-157.204966,0.0003863,120]
[405809559,1771330263873,-174.649906,0.0003863,120]
[405809560,1771330263883,-174.649906,0.0003863,120]
[405809561,1771330263894,-174.649906,0.0003863,120]
[405809562,1771330263904,-174.649906,0.0003863,120]
[405809563,1771330263913,-174.649906,0.0003863,120]
[405809564,1771330263923,-174.649906,0.0003863,120]
[405809565,1771330263933,-174.649906,0.0003863,120]
[405809566,1771330263945,-174.649906,0.0003863,120]
[405809567,1771330263955,-151.0,0.0003863,120]
[405809568,1771330263965,-174.649906,0.0003863,120]
[405809569,1771330263975,-153.799265,0.0003863,120]
[405809570,1771330263986,-174.649906,0.0003863,120]
[405809571,1771330263996,-174.649906,0.0003863,120]
[405809572,1771330264006,-174.649906,0.0003863,120]
[405809573,1771330264016,-174.649906,0.0003863,120]
[405809574,1771330264027,-151.0,0.0003863,120]
[405809575,1771330264038,-174.649906,0.0003863,120]
[405809576,1771330264049,-151.0,0.0003863,120]
[405809577,1771330264060,-174.649906,0.0003863,120]
[405809578,1771330264071,-151.0,0.0003863,120]
[405809579,1771330264082,-174.649906,0.0003863,120]
[405809580,1771330264093,-151.0,0.0003863,120]
[405809581,1771330264103,-151.0,0.0003863,120]
[405809582,1771330264113,-151.0,0.0003863,120]
[405809583,1771330264125,-151.0,0.0003863,120]
[405809584,1771330264137,-151.0,0.0003863,120]
[405809585,1771330264148,-151.0,0.0003863,120]
[405809586,1771330264159,-186.526113,0.0003863,120]
[405809587,1771330264171,-151.0,0.0003863,120]
[405809588,1771330264182,-151.0,0.0003863,120]
[405809589,1771330264192,-151.0,0.0003863,120]
[405809590,1771330264205,-151.0,0.0003863,120]
[405809591,1771330264217,-151.0,0.0003863,120]
[405809592,1771330264227,-196.044901,0.0003863,120]
[405809593,1771330264238,-151.0,0.0003863,120]
[405809594,1771330264249,-151.0,0.0003863,120]
[405809595,1771330264260,-151.0,0.0003863,120]
[405809596,1771330264271,-252.474916,0.0003863,120]
[405809597,1771330264282,-227.156049,0.0003863,120]
[405809598,1771330264293,-151.0,0.0003863,120]
[405809599,1771330264303,-151.0,0.0003863,120]
[405809600,1771330264314,-151.0,0.0003863,120]
[405809601,1771330264326,-151.0,0.0003863,120]
[405809602,1771330264338,-176.141721,0.0003863,120]
[405809603,1771330264348,-176.141721,0.0003863,120]
[405809604,1771330264358,-176.141721,0.0003863,120]
[405809605,1771330264368,-176.141721,0.0003863,120]
[405809606,1771330264377,-176.141721,0.0003863,120]
[405809607,1771330264388,-176.141721,0.0003863,120]
[405809608,1771330264398,-176.141721,0.0003863,120]
[405809609,1771330264409,-151.0,0.0003863,120]
[405809610,1771330264419,-151.0,0.0003863,120]
[405809611,1771330264430,-176.141721,0.0003863,120]
[405809612,1771330264441,-157.04491,0.0003863,120]
[405809613,1771330264453,-1798.30938,0.0003863,120]
[405809614,1771330264464,-176.141721,0.0003863,120]
[405809615,1771330264475,-1798.30938,0.0003863,120]
[405809616,1771330264486,-176.141721,0.0003863,120]
[405809617,1771330264497,-1798.30938,0.0003863,120]
[405809618,1771330264510,-176.141721,0.0003863,120]
[405809619,1771330264524,-176.141721,0.0003863,120]
[405809620,1771330264537,-176.141721,0.0003863,120]
[405809621,1771330264549,-151.0,0.0003863,120]
[405809622,1771330264560,-1798.30938,0.0003863,120]
[405809623,1771330264571,-176.141721,0.0003863,120]
[405809624,1771330264585,-151.0,0.0003863,120]
[405809625,1771330264598,-151.0,0.0003863,120]
[405809626,1771330264611,-176.141721,0.0003863,120]
[405809627,1771330264624,-151.0,0.0003863,120]
[405809628,1771330264635,-1798.30938,0.0003863,120]
[405809629,1771330264646,-281.015797,0.0003863,120]
[405809630,1771330264658,-151.0,0.0003863,120]
[405809631,1771330264672,-176.141721,0.0003863,120]
[405809632,1771330264683,-1798.30938,0.0003863,120]
[405809633,1771330264695,-1798.30938,0.0003863,120]
[405809634,1771330264707,-151.0,0.0003863,120]
[405809635,1771330264719,-1798.30938,0.0003863,120]
[405809636,1771330264730,-227.234021,0.0003863,120]
[405809637,1771330264743,-151.0,0.0003863,120]
[405809638,1771330264755,-151.0,0.0003863,120]
[405809639,1771330264768,-1798.30938,0.0003863,120]